bitfinex-derivatives/quotes_BTCF0:USTF0_20250810
["timestamp","ask_amount","ask_price","bid_price","bid_amount"]
[1754830013315,0.007,118760.0,118750.0,0.7374227]
[1754830014229,0.0911952,118760.0,118750.0,0.7374227]
[1754830015526,0.0911952,118760.0,118750.0,0.1991027]
[1754830015828,0.5680352,118760.0,118750.0,0.1991027]
[1754830016126,0.5680352,118760.0,118750.0,0.7373027]
[1754830017230,0.5680352,118760.0,118750.0,0.84266816]
[1754830022533,0.4519952,118760.0,118750.0,0.84266816]
[1754830022923,0.007,118760.0,118750.0,0.84266816]
[1754830025643,0.007,118760.0,118750.0,1.20346816]
[1754830029144,0.007,118760.0,118750.0,1.47246816]
[1754830036846,0.007,118760.0,118750.0,1.3671027]
[1754830047255,0.007,118760.0,118750.0,1.0981027]
[1754830047455,0.0001,118770.0,118760.0,0.0841941]
[1754830047760,0.0001,118770.0,118760.0,0.58437196]
[1754830054466,0.0001,118770.0,118760.0,0.68967431]
[1754830054963,0.0001,118770.0,118760.0,0.58437196]
[1754830057467,0.0001,118770.0,118760.0,0.65958563]
[1754830058865,0.0001,118770.0,118760.0,0.92858563]
[1754830060460,0.0001,118770.0,118760.0,0.85337196]
[1754830060858,0.0001,118770.0,118760.0,0.95867308]
[1754830061257,0.0001,118770.0,118760.0,0.85337196]
[1754830061461,0.00989677,118790.0,118780.0,0.1319689]
[1754830061765,0.00989677,118790.0,118780.0,0.81539462]
[1754830062866,0.00989677,118790.0,118780.0,0.81739462]
[1754830063061,0.00999677,118790.0,118780.0,0.7421789]
[1754830063258,0.08222677,118790.0,118780.0,0.7421789]
[1754830063661,0.08222677,118790.0,118780.0,0.82883652]
[1754830064673,0.08222677,118790.0,118780.0,1.09783652]
[1754830064865,0.08222677,118790.0,118780.0,1.20313853]
[1754830065267,0.00999677,118790.0,118780.0,1.26480767]
[1754830065470,0.00999677,118790.0,118780.0,1.18963652]
[1754830065669,0.00999677,118790.0,118780.0,1.29493853]
[1754830066065,0.00999677,118790.0,118780.0,1.18963652]
[1754830067577,0.00999677,118790.0,118780.0,1.29479438]
[1754830069276,0.00999677,118790.0,118780.0,1.18963652]
[1754830071775,0.00999677,118790.0,118780.0,1.29472775]
[1754830074081,0.00999677,118790.0,118780.0,1.18963652]
[1754830076070,0.00999677,118790.0,118780.0,1.26471034]
[1754830076481,0.00999677,118790.0,118780.0,1.53371034]
[1754830079079,0.05838677,118790.0,118780.0,0.99559034]
[1754830079383,0.12774677,118790.0,118780.0,1.53355034]
[1754830080085,0.03604677,118790.0,118780.0,1.53355034]
[1754830080286,0.03604677,118790.0,118780.0,1.45847652]
[1754830080881,0.01944677,118790.0,118780.0,1.45847652]
[1754830081583,0.00999677,118790.0,118780.0,1.45847652]
[1754830081986,0.00999677,118790.0,118780.0,1.53358677]
[1754830082390,0.00999677,118790.0,118780.0,1.45847652]
[1754830082987,0.00999677,118790.0,118780.0,1.53358992]
[1754830083188,0.00999677,118790.0,118780.0,1.45847652]
[1754830085691,0.00999677,118790.0,118780.0,1.5635714]
[1754830090912,0.00999677,118790.0,118780.0,1.45847652]
[1754830092603,0.01963677,118790.0,118780.0,1.45847652]
[1754830094710,0.01963677,118790.0,118780.0,1.45839652]
[1754830095005,0.08098677,118790.0,118780.0,1.45839652]
[1754830095408,0.05642677,118790.0,118780.0,1.45839652]
[1754830095611,0.12687677,118790.0,118780.0,1.45839652]
[1754830096012,0.10266677,118790.0,118780.0,1.45839652]
[1754830096205,0.03474677,118790.0,118780.0,1.45839652]
[1754830097815,0.01963677,118790.0,118780.0,1.45839652]
[1754830098411,0.00999677,118790.0,118780.0,1.45839652]
[1754830107421,0.00999677,118790.0,118780.0,1.09759652]
[1754830107718,0.00999677,118790.0,118780.0,1.45839652]
[1754830119624,0.3608,118810.0,118780.0,1.45839652]
[1754830119830,0.48004,118810.0,118800.0,0.2253923]
[1754830120022,0.3608,118810.0,118800.0,0.7639923]
[1754830120527,0.3608,118810.0,118800.0,0.86945278]
[1754830120824,0.45808,118810.0,118800.0,0.86945278]
[1754830121023,0.12034,118810.0,118800.0,0.86945278]
[1754830121424,0.11934,118810.0,118800.0,0.86945278]
[1754830121630,0.12334,118810.0,118800.0,0.86945278]
[1754830122127,0.10038,118810.0,118800.0,0.86945278]
[1754830122321,0.0041,118810.0,118800.0,0.86945278]
[1754830122523,0.0041,118810.0,118800.0,0.7639923]
[1754830123328,0.0041,118810.0,118800.0,1.23001279]
[1754830123329,0.0031,118810.0,118800.0,1.23001279]
[1754830124128,0.0031,118810.0,118800.0,1.23835293]
[1754830125730,0.0061,118810.0,118800.0,1.23835293]
[1754830126238,0.0021,118810.0,118800.0,1.23830911]
[1754830126530,0.0051,118810.0,118800.0,1.23830911]
[1754830129029,0.0051,118810.0,118800.0,1.13297244]
[1754830132731,0.0051,118810.0,118800.0,1.50730911]
[1754830133026,0.0051,118810.0,118800.0,0.96886911]
[1754830133232,0.0051,118810.0,118800.0,0.29031911]
[1754830133233,0.5692988,118810.0,118800.0,0.29031911]
[1754830133426,0.5692988,118810.0,118800.0,0.23289911]
[1754830133632,0.5692988,118810.0,118800.0,0.77081911]
[1754830133822,0.5692988,118810.0,118800.0,0.82973911]
[1754830134022,0.5692988,118810.0,118800.0,0.72440244]
[1754830134217,0.5692988,118810.0,118800.0,0.77165244]
[1754830134423,0.48514,118810.0,118800.0,0.77165244]
[1754830136328,0.5692988,118810.0,118800.0,0.23373244]
[1754830136524,0.5692988,118810.0,118800.0,0.77165244]
[1754830138334,0.5692988,118810.0,118800.0,0.75688244]
[1754830138532,0.5692988,118810.0,118800.0,0.77165244]
[1754830138735,0.5692988,118810.0,118800.0,0.23373244]
[1754830138928,0.5692988,118810.0,118800.0,0.11129244]
[1754830139330,0.5692988,118810.0,118800.0,0.64921244]
[1754830139834,0.5692988,118810.0,118800.0,0.75688244]
[1754830140823,0.5692988,118810.0,118800.0,0.74708244]
[1754830141233,0.5692988,118810.0,118800.0,0.85241911]
[1754830142333,0.5692988,118810.0,118800.0,0.86718911]
[1754830142832,0.5692988,118810.0,118800.0,0.87698911]
[1754830144929,0.5692988,118810.0,118800.0,0.77165244]
[1754830146435,0.5692988,118810.0,118800.0,0.23373244]
[1754830146635,0.5692988,118810.0,118800.0,0.77165244]
[1754830146935,0.5692988,118810.0,118800.0,0.84694041]
[1754830147137,0.63647162,118810.0,118800.0,0.07528797]
[1754830147430,0.63647162,118810.0,118790.0,0.10533667]
[1754830147431,0.1317959,118800.0,118790.0,0.10533667]
[1754830147634,0.5631359,118800.0,118790.0,0.64321667]
[1754830148533,0.5631359,118800.0,118790.0,0.53788]
[1754830150037,0.5631359,118800.0,118790.0,0.53888]
[1754830150741,0.7314959,118800.0,118790.0,0.001]
[1754830151143,0.7334959,118800.0,118790.0,0.001]
[1754830151840,0.1003075,118770.0,118760.0,0.10533667]
[1754830152046,0.1318246,118760.0,118750.0,0.2019016]
[1754830152235,0.5631646,118760.0,118750.0,0.2019016]
[1754830152634,0.5631646,118760.0,118750.0,0.1177]
[1754830152836,0.5631646,118760.0,118750.0,0.21012299]
[1754830153438,0.4612146,118760.0,118750.0,0.21612299]
[1754830153639,0.5631646,118760.0,118750.0,0.2079016]
[1754830153944,0.5631646,118760.0,118750.0,0.2129016]
[1754830154739,0.4927246,118760.0,118750.0,0.2129016]
[1754830155342,0.5496246,118760.0,118750.0,0.2129016]
[1754830155642,0.5631646,118760.0,118750.0,0.2129016]
[1754830156141,0.5262046,118760.0,118750.0,0.2129016]
[1754830156745,0.4927245,118760.0,118750.0,0.2211482]
[1754830156936,0.5262045,118760.0,118750.0,0.2211482]
[1754830157245,0.08121,118760.0,118750.0,0.2211482]
[1754830157744,0.5631645,118760.0,118750.0,0.1287]
[1754830157933,0.5631645,118760.0,118750.0,0.05842]
[1754830158745,0.5631645,118760.0,118750.0,0.011]
[1754830163751,0.5631645,118760.0,118750.0,0.1287]
[1754830163951,0.5631645,118760.0,118750.0,0.198992]
[1754830164253,0.5631645,118760.0,118750.0,0.212902]
[1754830166857,0.5631645,118760.0,118750.0,0.156532]
[1754830167057,0.5496245,118760.0,118750.0,0.212902]
[1754830167259,0.5631645,118760.0,118750.0,0.212902]
[1754830167754,0.5631645,118760.0,118750.0,0.095202]
[1754830167946,0.5631645,118760.0,118750.0,0.212902]
[1754830171956,0.47897,118760.0,118750.0,0.212902]
[1754830172854,0.11817,118760.0,118750.0,0.212902]
[1754830179560,0.11817,118760.0,118750.0,0.573702]
[1754830179963,0.11817,118760.0,118750.0,0.212902]
[1754830180260,0.11817,118760.0,118750.0,0.573702]
[1754830182960,0.11817,118760.0,118750.0,0.64903424]
[1754830184364,0.11817,118760.0,118750.0,0.28823424]
[1754830184663,0.11817,118760.0,118750.0,0.64903424]
[1754830186767,0.11817,118760.0,118750.0,0.573702]
[1754830186962,0.0001,118760.0,118750.0,0.64900924]
[1754830187168,0.0001,118760.0,118750.0,0.67903867]
[1754830187556,0.0001,118760.0,118750.0,0.6978818]
[1754830188768,0.0001,118760.0,118750.0,0.59254513]
[1754830189169,0.0001,118760.0,118750.0,1.06096113]
[1754830189966,0.0001,118760.0,118750.0,1.1662978]
[1754830190672,0.0001,118760.0,118750.0,0.9978818]
[1754830190973,0.0001,118760.0,118750.0,1.1662978]
[1754830191983,0.0001,118760.0,118750.0,1.5270978]
[1754830194977,0.645498,118790.0,118780.0,0.2036916]
[1754830195177,0.645498,118790.0,118780.0,0.7426116]
[1754830195377,0.47714,118790.0,118780.0,0.81016503]
[1754830195576,0.5613146,118790.0,118780.0,0.88535514]
[1754830195878,0.47714,118790.0,118780.0,0.88535514]
[1754830196069,0.47724,118790.0,118780.0,0.88535514]
[1754830196468,0.47724,118790.0,118780.0,0.81016503]
[1754830196775,0.47724,118790.0,118780.0,0.88535514]
[1754830196972,0.47724,118790.0,118780.0,0.81016503]
[1754830197678,0.47724,118790.0,118780.0,0.81850346]
[1754830197973,0.47724,118790.0,118780.0,0.82150346]
[1754830198480,0.47724,118790.0,118780.0,0.82550346]
[1754830199973,0.38619,118790.0,118780.0,0.82550346]
[1754830200174,0.47724,118790.0,118780.0,0.82550346]
[1754830202178,0.10257,118790.0,118780.0,1.18630346]
[1754830202578,0.10257,118790.0,118780.0,1.26149357]
[1754830202878,0.0001,118790.0,118780.0,1.26149357]
[1754830206692,0.0001,118790.0,118780.0,1.18630346]
[1754830208691,0.02495,118790.0,118780.0,1.18630346]
[1754830208893,0.11796,118790.0,118780.0,1.18630346]
[1754830212898,0.2021347,118790.0,118780.0,0.64738346]
[1754830213189,0.2021347,118790.0,118780.0,1.18570346]
[1754830213387,0.11796,118790.0,118780.0,1.18570346]
[1754830215599,0.11796,118790.0,118780.0,1.18483346]
[1754830218095,0.2021353,118790.0,118780.0,1.18483346]
[1754830218399,0.5629353,118790.0,118780.0,0.82403346]
[1754830222695,0.11796,118790.0,118780.0,0.82403346]
[1754830223701,0.11796,118790.0,118780.0,0.92937013]
[1754830224098,0.47876,118790.0,118780.0,0.92937013]
[1754830225202,0.5629353,118790.0,118780.0,0.92937013]
[1754830226200,0.5629353,118790.0,118780.0,0.3234967]
[1754830226404,0.5629353,118790.0,118780.0,0.8615367]
[1754830227905,0.5629353,118790.0,118780.0,0.8595367]
[1754830228497,0.5629353,118790.0,118780.0,0.2028567]
[1754830228699,0.5629353,118790.0,118780.0,0.63552003]
[1754830228894,0.5629353,118790.0,118780.0,0.6271816]
[1754830229300,0.5629353,118790.0,118780.0,0.71077591]
[1754830229706,0.5629353,118790.0,118780.0,0.08234934]
[1754830229906,0.5629353,118790.0,118780.0,0.6292223]
[1754830230108,0.5629353,118790.0,118780.0,0.6252223]
[1754830230408,0.5629353,118790.0,118780.0,0.6222223]
[1754830231108,0.2020423,118780.0,118770.0,0.4556111]
[1754830231312,0.5629423,118780.0,118770.0,1.09898777]
[1754830232004,0.5629423,118780.0,118770.0,1.10741012]
[1754830232703,0.5629423,118780.0,118770.0,1.11041012]
[1754830233211,0.5629423,118780.0,118770.0,0.47103345]
[1754830233401,0.5629423,118780.0,118770.0,1.08441191]
[1754830233601,0.5629423,118780.0,118770.0,1.00907345]
[1754830234108,0.5629423,118780.0,118770.0,1.08439574]
[1754830234706,0.3609,118780.0,118770.0,1.00907345]
[1754830235211,0.3609,118780.0,118770.0,1.08438096]
[1754830235607,0.4450823,118780.0,118770.0,1.00907345]
[1754830236111,0.4450823,118780.0,118770.0,1.08437178]
[1754830236507,0.4607723,118780.0,118770.0,1.08437178]
[1754830236812,0.5623023,118780.0,118770.0,1.08437178]
[1754830237312,0.47812,118780.0,118770.0,1.08437178]
[1754830238014,0.5478321,118780.0,118770.0,1.08437178]
[1754830238511,0.5623021,118780.0,118770.0,1.08437178]
[1754830239308,0.3609,118780.0,118770.0,1.08437178]
[1754830239811,0.4450821,118780.0,118770.0,1.08437178]
[1754830240304,0.5638221,118780.0,118770.0,1.08437178]
[1754830241515,0.47964,118780.0,118770.0,1.08437178]
[1754830244315,0.44044,118780.0,118770.0,1.08437178]
[1754830244514,0.3609,118780.0,118770.0,1.08437178]
[1754830244815,0.3609,118780.0,118770.0,1.00907345]
[1754830245210,0.40833,118780.0,118770.0,0.47103345]
[1754830245416,0.47964,118780.0,118770.0,1.00911345]
[1754830245616,0.11884,118780.0,118770.0,1.00911345]
[1754830246318,0.11884,118780.0,118770.0,1.02762944]
[1754830247311,0.0001,118780.0,118770.0,1.02762944]
[1754830247618,0.0001,118780.0,118770.0,1.38842944]
[1754830248417,0.0001,118780.0,118770.0,1.02762944]
[1754830248811,0.0001,118780.0,118770.0,1.38842944]
[1754830250012,0.0001,118780.0,118770.0,1.02762944]
[1754830250214,0.0001,118780.0,118770.0,1.38842944]
[1754830250415,0.0001,118780.0,118770.0,1.46375091]
[1754830251119,0.0001,118780.0,118770.0,1.73275091]
[1754830251816,0.0001,118780.0,118770.0,1.65742944]
[1754830252220,0.0001,118780.0,118770.0,1.76276611]
[1754830253420,0.0001,118780.0,118770.0,1.65742944]
[1754830254624,0.0001,118780.0,118770.0,1.76276611]
[1754830255926,0.0001,118780.0,118770.0,1.65742944]
[1754830261824,0.0001,118780.0,118770.0,1.76282212]
[1754830266327,0.0001,118780.0,118770.0,1.65742944]
[1754830266729,0.12132,118780.0,118770.0,1.65742944]
[1754830266929,0.08296,118780.0,118770.0,1.76282694]
[1754830267332,0.01654,118780.0,118770.0,1.76282694]
[1754830268433,0.01654,118780.0,118770.0,1.65742944]
[1754830270733,0.01654,118780.0,118770.0,1.76284071]
[1754830271830,0.0001,118780.0,118770.0,1.76284071]
[1754830272032,0.0001,118780.0,118770.0,1.65742944]
[1754830272932,0.0001,118780.0,118770.0,1.11934944]
[1754830273227,0.0001,118780.0,118770.0,1.76278467]
[1754830274834,0.04905,118780.0,118770.0,1.22478467]
[1754830275036,0.12132,118780.0,118770.0,1.83806513]
[1754830275232,0.12132,118780.0,118770.0,1.7326299]
[1754830275435,0.10768,118780.0,118770.0,1.7326299]
[1754830275632,0.04905,118780.0,118770.0,1.1946699]
[1754830275838,0.12132,118780.0,118770.0,1.3718299]
[1754830277033,0.12132,118780.0,118770.0,1.29650944]
[1754830277334,0.12132,118780.0,118770.0,1.40194467]
[1754830279628,0.08296,118780.0,118770.0,1.33034467]
[1754830279829,0.12132,118780.0,118770.0,1.36733467]
[1754830280028,0.12132,118780.0,118770.0,1.39967467]
[1754830280529,0.12132,118780.0,118770.0,1.29423944]
[1754830280732,0.5663024,118780.0,118770.0,1.13078769]
[1754830281134,0.5663024,118780.0,118770.0,1.02523944]
[1754830281741,0.5663024,118780.0,118770.0,0.48727944]
[1754830282036,0.5663024,118780.0,118770.0,1.02523944]
[1754830282536,0.5663024,118780.0,118770.0,0.48727944]
[1754830283130,0.5663024,118780.0,118770.0,0.88956234]
[1754830283338,0.5663024,118780.0,118770.0,0.99516015]
[1754830283534,0.5663024,118780.0,118770.0,1.04599015]
[1754830284434,0.4615224,118780.0,118770.0,1.04599015]
[1754830284743,0.5663024,118780.0,118770.0,1.04599015]
[1754830286341,0.5663024,118780.0,118770.0,0.94039234]
[1754830286936,0.5663024,118780.0,118770.0,1.04599233]
[1754830288839,0.5663024,118780.0,118770.0,0.94039234]
[1754830289039,0.5663024,118780.0,118770.0,0.40243234]
[1754830289240,0.5663024,118780.0,118770.0,0.94043234]
[1754830291145,0.5663024,118780.0,118770.0,0.40243234]
[1754830291338,0.5663024,118780.0,118770.0,0.84782289]
[1754830291947,0.5663024,118780.0,118770.0,0.92321064]
[1754830293440,0.5663024,118780.0,118770.0,0.84782289]
[1754830294344,0.5663024,118780.0,118770.0,0.85642719]
[1754830294646,0.5663024,118780.0,118770.0,0.93179563]
[1754830295040,0.2055024,118780.0,118770.0,0.93179563]
[1754830295240,0.5663024,118780.0,118770.0,0.93179563]
[1754830295747,0.5663024,118780.0,118770.0,0.86246563]
[1754830295946,0.5663024,118780.0,118770.0,0.77849289]
[1754830296146,0.5663024,118780.0,118770.0,0.84916289]
[1754830297646,0.5663024,118780.0,118770.0,0.92452792]
[1754830298049,0.5663024,118780.0,118770.0,0.93311728]
[1754830300653,0.5663024,118780.0,118770.0,0.38652792]
[1754830300855,0.5663024,118780.0,118770.0,0.92448792]
[1754830301047,0.5663024,118780.0,118770.0,0.14749102]
[1754830301252,0.7346864,118780.0,118770.0,0.54496]
[1754830301557,0.7346864,118780.0,118770.0,0.62032233]
[1754830302659,0.5663024,118780.0,118770.0,0.62032233]
[1754830303052,0.5663024,118780.0,118770.0,0.54496]
[1754830303660,0.5663024,118780.0,118770.0,0.007]
[1754830304559,0.5663024,118780.0,118770.0,0.05499]
[1754830304759,0.5663024,118780.0,118770.0,0.12566]
[1754830309459,0.5663024,118780.0,118770.0,0.007]
[1754830315854,0.9271024,118780.0,118770.0,0.007]
[1754830322364,1.6334464,118780.0,118770.0,0.007]
[1754830322864,0.1091337,118750.0,118740.0,1.63248437]
[1754830323063,0.5629737,118750.0,118740.0,0.86555487]
[1754830323861,0.5629737,118750.0,118740.0,0.8353735]
[1754830324065,0.5629737,118750.0,118740.0,0.2974135]
[1754830324268,0.5629737,118750.0,118740.0,0.8353735]
[1754830324469,0.5629737,118750.0,118740.0,0.2974135]
[1754830324862,0.5629737,118750.0,118740.0,0.2826235]
[1754830325063,0.5629737,118750.0,118740.0,0.2974135]
[1754830325268,0.5629737,118750.0,118740.0,0.3084135]
[1754830325470,0.5629737,118750.0,118740.0,0.23299488]
[1754830327369,0.5629737,118750.0,118740.0,0.3084135]
[1754830327570,0.5629737,118750.0,118740.0,0.23299488]
[1754830328673,0.5629737,118750.0,118740.0,0.3084135]
[1754830329669,0.5629737,118750.0,118740.0,0.23299488]
[1754830329868,0.5629737,118750.0,118740.0,0.16070488]
[1754830330070,0.5629737,118750.0,118740.0,0.21529488]
[1754830330274,0.5629737,118750.0,118740.0,0.07649418]
[1754830330676,0.5629737,118750.0,118740.0,0.03012418]
[1754830331771,0.5629737,118750.0,118740.0,0.05266418]
[1754830331967,0.5629737,118750.0,118740.0,0.08471418]
[1754830332972,0.5629737,118750.0,118740.0,0.03012418]
[1754830334073,0.6290555,118750.0,118740.0,0.03012418]
[1754830337778,0.2005707,118740.0,118730.0,0.07541862]
[1754830338079,0.5614707,118740.0,118730.0,0.07541862]
[1754830339283,0.5614707,118740.0,118730.0,0.08041862]
[1754830340580,0.5614707,118740.0,118730.0,0.08541862]
[1754830340781,1.0994307,118740.0,118730.0,0.08541862]
[1754830341276,1.0994307,118740.0,118730.0,0.08041862]
[1754830341477,1.0994307,118740.0,118730.0,0.08141862]
[1754830341882,1.0994307,118740.0,118730.0,0.006]
[1754830342083,1.0994307,118740.0,118730.0,0.005]
[1754830342280,1.1004307,118740.0,118730.0,0.005]
[1754830342480,0.1296378,118730.0,118720.0,0.19050862]
[1754830342682,0.5614778,118730.0,118720.0,0.19050862]
[1754830343790,0.5614778,118730.0,118720.0,0.19250862]
[1754830343991,0.5614778,118730.0,118720.0,0.17837862]
[1754830344194,0.5634778,118730.0,118720.0,0.17837862]
[1754830344594,0.5634778,118730.0,118720.0,0.19250862]
[1754830344791,0.5634778,118730.0,118720.0,0.19150862]
[1754830345893,0.5614778,118730.0,118720.0,0.19150862]
[1754830346987,0.5614778,118730.0,118720.0,0.27573342]
[1754830347494,0.5614778,118730.0,118720.0,0.19150862]
[1754830349788,0.5467178,118730.0,118720.0,0.2003147]
[1754830350094,0.3609,118730.0,118720.0,0.2003147]
[1754830351091,0.3609,118730.0,118720.0,0.2757768]
[1754830351293,0.3609,118730.0,118720.0,0.2767768]
[1754830351793,0.3609,118730.0,118720.0,0.2013147]
[1754830351994,0.3609,118730.0,118720.0,0.27678675]
[1754830352192,0.0843177,118730.0,118720.0,0.2013147]
[1754830352401,0.1625377,118730.0,118720.0,0.7392747]
[1754830352696,0.2006777,118730.0,118720.0,0.7402747]
[1754830352896,0.2006777,118730.0,118720.0,0.27779764]
[1754830353099,0.5614777,118730.0,118720.0,0.81575764]
[1754830353894,0.4905377,118730.0,118720.0,0.16270764]
[1754830354195,0.5614777,118730.0,118720.0,0.002]
[1754830354999,0.5614777,118730.0,118720.0,0.001]
[1754830355396,0.5614777,118730.0,118720.0,0.10659999]
[1754830355895,0.5614777,118730.0,118720.0,0.10559999]
[1754830356097,0.5614777,118730.0,118720.0,0.10659999]
[1754830356296,0.5614777,118730.0,118720.0,0.001]
[1754830356592,0.2034647,118720.0,118710.0,0.75870999]
[1754830356796,0.5643647,118720.0,118710.0,0.75870999]
[1754830357002,0.5643647,118720.0,118710.0,0.10569999]
[1754830357198,0.5643647,118720.0,118710.0,0.13005999]
[1754830357390,0.5643647,118720.0,118710.0,0.16248999]
[1754830357699,0.5643647,118720.0,118710.0,0.15731491]
[1754830357900,0.5643647,118720.0,118710.0,0.19474491]
[1754830358097,0.5643647,118720.0,118710.0,0.11922]
[1754830358892,0.5643647,118720.0,118710.0,0.07268]
[1754830359491,0.5643647,118720.0,118710.0,0.07168]
[1754830359696,0.5683647,118720.0,118710.0,0.07168]
[1754830360397,0.5683647,118720.0,118710.0,0.14720491]
[1754830360596,0.5683647,118720.0,118710.0,0.17963491]
[1754830361799,0.5703647,118720.0,118710.0,0.17863491]
[1754830362197,0.5703647,118720.0,118710.0,0.12184491]
[1754830362699,0.5703647,118720.0,118710.0,0.19274491]
[1754830364596,0.5703647,118720.0,118710.0,0.27697671]
[1754830365096,0.9311647,118720.0,118710.0,0.19274491]
[1754830365404,0.9311647,118720.0,118710.0,0.27697671]
[1754830367001,0.9311647,118720.0,118710.0,0.2014518]
[1754830369306,0.9311647,118720.0,118710.0,0.11722]
[1754830374118,0.9311647,118720.0,118710.0,0.0098]
[1754830378921,0.9311647,118720.0,118710.0,0.0001]
[1754830379116,0.1315189,118700.0,118690.0,0.82311761]
[1754830379315,0.5642789,118700.0,118690.0,0.82311761]
[1754830379923,0.5642789,118700.0,118690.0,0.0083873]
[1754830380224,0.9250789,118700.0,118690.0,0.12012]
[1754830380418,0.9251789,118700.0,118690.0,0.12022]
[1754830381320,0.9251789,118700.0,118690.0,0.0031]
[1754830381527,0.9251789,118700.0,118690.0,0.134566]
[1754830381727,0.9251789,118700.0,118690.0,0.743306]
[1754830383421,0.9251789,118700.0,118690.0,0.81883091]
[1754830387331,0.9251789,118700.0,118690.0,0.81583091]
[1754830387531,0.9251789,118700.0,118690.0,0.81683091]
[1754830392033,0.9251789,118700.0,118690.0,0.73258491]
[1754830394235,0.9261789,118700.0,118690.0,0.73158491]
[1754830394836,0.9271789,118700.0,118690.0,0.73058491]
[1754830395736,0.9271789,118700.0,118690.0,0.81483081]
[1754830396736,0.9271789,118700.0,118690.0,0.73058491]
[1754830397138,0.2055789,118700.0,118690.0,0.73058491]
[1754830397342,0.9271789,118700.0,118690.0,0.73058491]
[1754830397741,0.9271789,118700.0,118690.0,0.81483081]
[1754830398735,0.9261789,118700.0,118690.0,0.81583081]
[1754830399941,0.9251789,118700.0,118690.0,0.81683081]
[1754830400540,0.9251789,118700.0,118690.0,0.73258491]
[1754830401643,0.9251789,118700.0,118690.0,0.19474491]
[1754830401842,0.9251789,118700.0,118690.0,0.73150491]
[1754830402141,0.9261789,118700.0,118690.0,0.73150491]
[1754830402840,0.9271789,118700.0,118690.0,0.73150491]
[1754830404036,0.9271789,118700.0,118690.0,0.73050491]
[1754830404242,0.9281789,118700.0,118690.0,0.73050491]
[1754830404838,0.9291789,118700.0,118690.0,0.73050491]
[1754830406535,0.9291789,118700.0,118690.0,0.65498]
[1754830406737,0.2075789,118700.0,118690.0,0.65498]
[1754830406937,0.9291789,118700.0,118690.0,0.73064758]
[1754830408843,0.9291789,118700.0,118690.0,0.65498]
[1754830409146,0.9291789,118700.0,118690.0,0.73064419]
[1754830409745,0.9291789,118700.0,118690.0,0.65494]
[1754830410646,0.9291789,118700.0,118690.0,0.0001]
[1754830410852,0.9291789,118700.0,118690.0,0.07584357]
[1754830411240,1.4668989,118700.0,118690.0,0.07584357]
[1754830411442,0.1332572,118660.0,118650.0,0.55090593]
[1754830411647,0.5663972,118660.0,118650.0,0.19763193]
[1754830411948,0.5663972,118660.0,118650.0,0.6691543]
[1754830412150,0.5663972,118660.0,118650.0,0.7416343]
[1754830412447,0.5663972,118660.0,118650.0,0.02593]
[1754830412647,0.2056043,118650.0,118640.0,0.11968]
[1754830412858,0.5665043,118650.0,118640.0,0.65736]
[1754830413147,0.2056186,118630.0,118620.0,0.22291193]
[1754830413344,0.5665186,118630.0,118620.0,0.80779193]
[1754830413546,0.5665186,118630.0,118620.0,0.65736]
[1754830413841,0.5665186,118630.0,118620.0,0.11968]
[1754830414046,0.2056257,118620.0,118610.0,0.23236193]
[1754830414248,0.5665257,118620.0,118610.0,0.11968]
[1754830414943,0.2056327,118610.0,118600.0,0.04935]
[1754830415146,0.5665327,118610.0,118600.0,0.65736]
[1754830415348,0.5665327,118610.0,118590.0,0.81694494]
[1754830415349,0.2012199,118600.0,118590.0,0.81694494]
[1754830415547,0.5621199,118600.0,118590.0,0.8927723]
[1754830415943,0.0844098,118600.0,118590.0,0.74234037]
[1754830416142,0.0844098,118600.0,118590.0,0.8178081]
[1754830416548,0.4778998,118600.0,118590.0,0.8178081]
[1754830417148,0.4935698,118600.0,118590.0,0.74234037]
[1754830417344,0.5621198,118600.0,118590.0,0.74234037]
[1754830417745,0.5621198,118600.0,118590.0,0.74334037]
[1754830418946,0.5621198,118600.0,118590.0,0.74634037]
[1754830419448,0.5621198,118600.0,118590.0,0.66202337]
[1754830419750,0.5621198,118600.0,118590.0,0.74634037]
[1754830423854,0.4452098,118600.0,118590.0,0.74634037]
[1754830424148,0.0844098,118600.0,118590.0,0.74634037]
[1754830424348,0.0844098,118600.0,118590.0,0.12434337]
[1754830424553,0.5621198,118600.0,118590.0,0.66222337]
[1754830425658,0.5621198,118600.0,118590.0,0.74654007]
[1754830426056,0.5478498,118600.0,118590.0,0.74654007]
[1754830426253,0.5242798,118600.0,118590.0,0.74654007]
[1754830426850,0.5242798,118600.0,118590.0,0.74554007]
[1754830427549,0.5242798,118600.0,118590.0,0.74354007]
[1754830427746,0.5242798,118600.0,118590.0,0.74654007]
[1754830428145,0.4452098,118600.0,118590.0,0.74654007]
[1754830429058,0.4778998,118600.0,118590.0,0.74654007]
[1754830429956,0.4935698,118600.0,118590.0,0.74654007]
[1754830430155,0.5171398,118600.0,118590.0,0.74654007]
[1754830430655,0.0001,118600.0,118590.0,0.74654007]
[1754830430848,0.0844095,118600.0,118590.0,1.10734007]
[1754830431448,0.0844095,118600.0,118590.0,0.74654007]
[1754830431649,0.0001,118600.0,118590.0,1.10734007]
[1754830431948,0.0001,118600.0,118590.0,1.27598006]
[1754830433053,0.0844096,118600.0,118590.0,1.27598006]
[1754830434160,0.0001,118600.0,118590.0,1.27598006]
[1754830434862,0.2013196,118600.0,118590.0,0.20866007]
[1754830435162,0.5621196,118600.0,118590.0,0.74898007]
[1754830438058,0.11701,118600.0,118590.0,0.74898007]
[1754830438257,0.0001,118600.0,118590.0,1.10978007]
[1754830438457,0.0844095,118600.0,118590.0,0.74898007]
[1754830439161,0.5621195,118600.0,118590.0,0.74898007]
[1754830440362,0.5621195,118600.0,118590.0,0.74798007]
[1754830440867,0.5621195,118600.0,118590.0,0.70038007]
[1754830441057,0.5621195,118600.0,118590.0,0.73381997]
[1754830441264,0.5621195,118600.0,118590.0,0.74797997]
[1754830443463,0.5621195,118600.0,118590.0,0.8234477]
[1754830445070,0.5631195,118600.0,118590.0,0.8224477]
[1754830445456,0.5631195,118600.0,118590.0,0.7381311]
[1754830445951,0.5641195,118600.0,118590.0,0.7381311]
[1754830446165,0.5641195,118600.0,118590.0,0.7379111]
[1754830446363,0.5641195,118600.0,118590.0,0.0776411]
[1754830446557,0.5661195,118600.0,118590.0,0.6152811]
[1754830446759,0.5661195,118600.0,118590.0,0.8185577]
[1754830446964,0.5648195,118600.0,118590.0,0.8185577]
[1754830447467,0.5648195,118600.0,118590.0,0.7342411]
[1754830449369,0.5648195,118600.0,118590.0,0.65877337]
[1754830449761,0.5648195,118600.0,118590.0,0.64455337]
[1754830450266,0.5648195,118600.0,118590.0,0.65877337]
[1754830451163,0.2001366,118590.0,118580.0,0.0001]
[1754830451370,0.2001508,118570.0,118560.0,0.73406773]
[1754830451675,0.5610508,118570.0,118560.0,0.73406773]
[1754830452372,0.9218508,118570.0,118560.0,0.58684]